fUSD/lending_fUSD_20250123
["ID","MTS","AMOUNT","RATE_DAILY","PERIOD"]
[350051261,1737592262758,-500.0,0.00021817,2]
[350051262,1737592262768,-1237.37,0.00021817,2]
[350051263,1737592262777,-756.58,0.00021817,2]
[350051264,1737592262786,-2412.85,0.00021817,2]
[350051265,1737592262798,-1879.24,0.00021817,2]
[350051266,1737592262808,-500.0,0.00021817,2]
[350051267,1737592262817,-500.0,0.00021817,2]
[350051268,1737592262827,-689.77,0.00021817,2]
[350051269,1737592262835,-755.39,0.00021817,2]
[350051270,1737592262845,-514.18,0.00021817,2]
[350051271,1737592262855,-1758.63,0.00021817,2]
[350051272,1737592262866,-500.0,0.00021817,2]
[350051273,1737592262875,-615.8,0.00021817,2]
[350051274,1737592262885,-500.0,0.00021817,2]
[350051275,1737592262895,-500.0,0.00021817,2]
[350051276,1737592262906,-502.3,0.00021817,2]
[350051277,1737592262918,-742.49,0.00021817,2]
[350051278,1737592262929,-226.50463321,0.00021817,2]
[350051279,1737592262940,-957.33,0.00021817,2]
[350051280,1737592262950,-1045.68,0.00021817,2]
[350051281,1737592262959,-500.0,0.00021817,2]
[350051282,1737592262967,-1134.72,0.00021817,2]
[350051283,1737592262977,-1402.15,0.00021817,2]
[350051284,1737592262986,-500.0,0.00021817,2]
[350051285,1737592262995,-522.7,0.00021817,2]
[350051286,1737592263008,-1310.68,0.00021817,2]
[350051287,1737592263017,-500.0,0.00021817,2]
[350051288,1737592263026,-743.32,0.00021817,2]
[350051289,1737592263036,-3097.06,0.00021817,2]
[350051290,1737592263046,-500.0,0.00021817,2]
[350051291,1737592263056,-1346.31,0.00021817,2]
[350051292,1737592263065,-500.0,0.00021817,2]
[350051293,1737592263075,-5482.58,0.00021817,2]
[350051294,1737592263085,-2248.49,0.00021817,2]
[350051295,1737592263096,-500.0,0.00021817,2]
[350051296,1737592263106,-842.65,0.00021817,2]
[350051297,1737592263116,-500.0,0.00021817,2]
[350051298,1737592263125,-500.0,0.00021817,2]
[350051299,1737592263135,-1128.96,0.00021817,2]
[350051300,1737592263146,-470.33574641,0.00021817,2]
[350051301,1737592263156,-1154.82,0.00021817,2]
[350051302,1737592263166,-2161.8,0.00021817,2]
[350051303,1737592263176,-838.78,0.00021817,2]
[350051304,1737592263187,-500.0,0.00021817,2]
[350051305,1737592263196,-1058.0,0.00021817,2]
[350051306,1737592263206,-500.0,0.00021817,2]
[350051307,1737592263216,-1595.19,0.00021817,2]
[350051308,1737592263226,-2441.82,0.00021817,2]
[350051309,1737592263236,-500.0,0.00021817,2]
[350051310,1737592263247,-500.0,0.00021817,2]
[350051311,1737592263258,-500.0,0.00021817,2]
[350051312,1737592263268,-500.0,0.00021817,2]
[350051313,1737592263278,-500.0,0.00021817,2]
[350051314,1737592263287,-1029.0,0.00021817,2]
[350051315,1737592263297,-3432.96,0.00021817,2]
[350051316,1737592263308,-1475.44,0.00021817,2]
[350051317,1737592263318,-1427.47,0.00021817,2]
[350051318,1737592263327,-194.81272475,0.00021818,4]
[350051319,1737592263338,-156.55386906,0.00021818,4]
[350051320,1737592263347,-150.0,0.00021821,2]
[350051321,1737592263356,-500.0,0.00021824,2]
[350051322,1737592263365,-150.0,0.00021825,2]
[350051323,1737592263374,-194.81272475,0.00021827,4]
[350051324,1737592263385,-156.55386906,0.00021827,4]
[350051325,1737592263395,-1000.0,0.00021829,2]
[350051326,1737592263404,-150.0,0.00021832,4]
[350051327,1737592263413,-150.0,0.00021835,2]
[350051328,1737592263423,-194.81272475,0.00021836,4]
[350051329,1737592263432,-156.55386906,0.00021836,4]
[350051330,1737592263442,-150.0,0.00021838,2]
[350051331,1737592263452,-150.0,0.00021841,4]
[350051332,1737592263461,-194.81272475,0.00021845,4]
[350051333,1737592263470,-156.55386906,0.00021845,4]
[350051334,1737592263479,-1000.0,0.00021851,2]
[350051335,1737592263488,-150.0,0.00021853,2]
[350051336,1737592263498,-150.0,0.00021854,2]
[350051337,1737592263508,-194.81272475,0.00021854,4]
[350051338,1737592263518,-156.55386906,0.00021854,4]
[350051339,1737592263527,-150.0,0.00021855,4]
[350051340,1737592263537,-194.81272475,0.00021863,4]
[350051341,1737592263547,-156.55386906,0.00021863,4]
[350051342,1737592263556,-1663.0,0.00021867,2]
[350051343,1737592263565,-150.0,0.00021867,2]
[350051344,1737592263576,-150.0,0.00021869,2]
[350051345,1737592263588,-150.0,0.00021869,2]
[350051346,1737592263597,-194.81272475,0.00021872,4]
[350051347,1737592263607,-156.55386906,0.00021872,4]
[350051348,1737592263617,-150.0,0.00021873,2]
[350051349,1737592263627,-150.0,0.00021877,4]
[350051350,1737592263636,-194.81272475,0.00021881,4]
[350051351,1737592263646,-156.55386906,0.00021881,4]
[350051352,1737592263656,-150.0,0.00021886,4]
[350051353,1737592263665,-194.81272475,0.00021891,4]
[350051354,1737592263674,-156.55386906,0.00021891,4]
[350051355,1737592263684,-150.0,0.00021899,4]
[350051356,1737592263693,-194.81272475,0.000219,4]
[350051357,1737592263703,-156.55386906,0.000219,4]
[350051358,1737592263712,-26709.59464115,0.000219,2]
[350051359,1737592263721,-214.02466953,0.000219,3]
[350051360,1737592263731,-9805.44848009,0.000219,4]
[350051361,1737592263741,-4341.15,0.000219,2]
[350051362,1737592263751,-453.42687839,0.000219,2]
[350051363,1737592263760,-200.0,0.000219,2]
[350051364,1737592263770,-3000.0,0.000219,2]
[350051365,1737592263780,-194.81272475,0.00021909,4]
[350051366,1737592263789,-156.55386906,0.00021909,4]
[350051367,1737592263799,-150.0,0.00021909,2]
[350051368,1737592263808,-565.22,0.0002191,2]
[350051369,1737592263818,-500.0,0.00021916,2]
[350051370,1737592263827,-500.0,0.00021916,2]
[350051371,1737592263836,-500.0,0.00021916,2]
[350051372,1737592263845,-1145.83,0.00021916,2]
[350051373,1737592263854,-500.0,0.00021916,2]
[350051374,1737592263864,-150.0,0.00021916,2]
[350051375,1737592263873,-1000.0,0.00021916,2]
[350051376,1737592263883,-1034.62,0.00021916,2]
[350051377,1737592263892,-500.0,0.00021916,2]
[350051378,1737592263901,-1736.32,0.00021916,2]
[350051379,1737592263911,-1943.36,0.00021916,2]
[350051380,1737592263922,-500.0,0.00021916,2]
[350051381,1737592263931,-500.0,0.00021916,2]
[350051382,1737592263941,-500.0,0.00021916,2]
[350051383,1737592263950,-524.74351284,0.00021916,2]
[350051384,1737592263960,-500.0,0.00021916,2]
[350051385,1737592263970,-500.0,0.00021916,2]
[350051386,1737592263979,-574.4282957,0.00021916,2]
[350051387,1737592263989,-500.0,0.00021916,2]
[350051388,1737592264002,-500.0,0.00021916,2]
[350051389,1737592264011,-500.0,0.00021917,2]
[350051390,1737592264022,-150.0,0.00021917,2]
[350051391,1737592264032,-1660.3,0.00021917,2]
[350051392,1737592264042,-853.57,0.00021917,2]
[350051393,1737592264051,-1744.85,0.00021917,2]
[350051394,1737592264061,-664.0,0.00021917,2]
[350051395,1737592264071,-1360.36,0.00021917,2]
[350051396,1737592264080,-513.67,0.00021917,2]
[350051397,1737592264091,-1129.74,0.00021917,2]
[350051398,1737592264100,-727.16,0.00021917,2]
[350051399,1737592264109,-2069.38,0.00021917,2]
[350051400,1737592264119,-1143.31,0.00021917,2]
[350051401,1737592264129,-549.24301534,0.00021917,2]
[350051402,1737592264139,-774.63,0.00021917,2]
[350051403,1737592264149,-1961.81,0.00021917,2]
[350051404,1737592264159,-867.24,0.00021917,2]
[350051405,1737592264169,-747.21,0.00021917,2]
[350051406,1737592264178,-721.36,0.00021917,2]
[350051407,1737592264188,-500.0,0.00021917,2]
[350051408,1737592264197,-234.68056477,0.00021917,2]
[350051409,1737592264206,-1210.11,0.00021917,2]
[350051410,1737592264215,-500.0,0.00021917,2]
[350051411,1737592264225,-500.0,0.00021917,2]
[350051412,1737592264234,-500.0,0.00021917,2]
[350051413,1737592264244,-500.0,0.00021917,2]
[350051414,1737592264255,-500.0,0.00021917,2]
[350051415,1737592264265,-150.0,0.00021918,2]
[350051416,1737592264275,-194.81272475,0.00021918,4]
[350051417,1737592264283,-156.55386906,0.00021918,4]
[350051418,1737592264293,-150.0,0.0002192,2]
[350051419,1737592264302,-150.0,0.00021921,4]
[350051420,1737592264312,-150.0,0.00021924,2]
[350051421,1737592264321,-194.81272475,0.00021927,4]
[350051422,1737592264331,-156.55386906,0.00021927,4]
[350051423,1737592264340,-150.0,0.00021928,2]
[350051424,1737592264349,-150.0,0.00021929,2]
[350051425,1737592264359,-150.0,0.00021932,4]
[350051426,1737592264368,-150.0,0.00021934,2]
[350051427,1737592264377,-150.0,0.00021935,2]
[350051428,1737592264387,-150.0,0.00021936,2]
[350051429,1737592264396,-194.81272475,0.00021936,4]
[350051430,1737592264406,-156.55386906,0.00021936,4]
[350051431,1737592264415,-150.0,0.00021941,2]
[350051432,1737592264424,-150.0,0.00021943,4]
[350051433,1737592264433,-194.81272475,0.00021945,4]
[350051434,1737592264443,-156.55386906,0.00021945,4]
[350051435,1737592264452,-150.0,0.0002195,2]
[350051436,1737592264462,-194.81272475,0.00021955,4]
[350051437,1737592264471,-156.55386906,0.00021955,4]
[350051438,1737592264480,-150.0,0.00021958,2]
[350051439,1737592264489,-150.0,0.00021958,2]
[350051440,1737592264499,-194.81272475,0.00021964,4]
[350051441,1737592264509,-156.55386906,0.00021964,4]
[350051442,1737592264519,-150.0,0.00021964,2]
[350051443,1737592264528,-150.0,0.00021965,4]
[350051444,1737592264537,-150.0,0.00021969,2]
[350051445,1737592264547,-151.90782398,0.0002197,2]
[350051446,1737592264557,-194.81272475,0.00021973,4]
[350051447,1737592264566,-156.55386906,0.00021973,4]
[350051448,1737592264578,-150.0,0.00021977,4]
[350051449,1737592264587,-194.81272475,0.00021982,4]
[350051450,1737592264597,-156.55386906,0.00021982,4]
[350051451,1737592264606,-150.0,0.00021983,2]
[350051452,1737592264616,-150.0,0.00021983,2]
[350051453,1737592264627,-150.0,0.00021987,4]
[350051454,1737592264636,-194.81272475,0.00021991,4]
[350051455,1737592264645,-156.55386906,0.00021991,4]
[350051456,1737592264654,-150.0,0.00021992,2]
[350051457,1737592264666,-4895.79987028,0.00021997,2]
[350051458,1737592264675,-1000.0,0.00021999,2]
[350051459,1737592264684,-10678.04457245,0.00021999,3]
[350051460,1737592264694,-10454345.72408823,0.00022,2]
[350051461,1737592264991,-1602.8,0.00021643,2]
[350051462,1737592265002,-88392.48715826,0.00022,2]
[350051463,1737592265014,-16021.6524888,0.00022,2]
[350051464,1737592265051,-328.9999999,0.00019178,2]
[350051465,1737592265067,-171.0000001,0.00019178,2]
[350051466,1737592265076,-133.35656102,0.00019452,2]
[350051467,1737592265367,-1600.0,0.000117,4]
[350051468,1737592265377,-500.0,0.00019178,2]
[350051469,1737592265386,-366.64343898,0.00019452,2]
[350051470,1737592265395,-500.0,0.00019452,2]
[350051471,1737592265405,-547.52,0.00019625,2]
[350051472,1737592265414,-500.0,0.00019726,2]
[350051473,1737592265423,-583.01811906,0.00019726,2]
[350051474,1737592265433,-547.52,0.00019899,2]
[350051475,1737592265443,-500.0,0.0002,2]
[350051476,1737592265453,-547.52,0.00020173,2]
[350051477,1737592265462,-252.8948733,0.00020272,2]
[350051478,1737592265483,-247.1051267,0.00020272,2]
[350051479,1737592265492,-500.0,0.00020273,2]
[350051480,1737592265502,-547.52,0.00020447,2]
[350051481,1737592265511,-500.0,0.00020546,2]
[350051482,1737592265521,-237.72028472,0.00020547,2]
[350051483,1737592265530,-397.06869918,0.00020721,2]
[350051484,1737592265549,-500.0,0.00020272,2]
[350051485,1737592265559,-150.45130082,0.00020721,2]
[350051486,1737592265568,-500.0,0.0002082,2]
[350051487,1737592265578,-500.0,0.00020995,2]
[350051488,1737592265593,-500.0,0.00021269,2]
[350051489,1737592265602,-500.0,0.00021368,2]
[350051490,1737592265611,-500.0,0.00021369,2]
[350051491,1737592265620,-500.0,0.00021543,2]
[350051492,1737592265630,-500.0,0.00021642,2]
[350051493,1737592265639,-500.0,0.00021643,2]
[350051494,1737592265648,-500.0,0.00021817,2]
[350051495,1737592265658,-1602.8,0.00021917,2]
[350051496,1737592265667,-500.0,0.00021917,2]
[350051497,1737592265677,-16269.77201756,0.00022,2]
[350051498,1737592265688,-419.09489356,0.00022,2]
[350051499,1737592265703,-815.3164394,0.00022,2]
[350051500,1737592265721,-469.31070039,0.00019452,2]
[350051501,1737592265732,-30.68929961,0.00019452,2]
[350051502,1737592265741,-10279.59272683,0.00022,2]
[350051503,1737592265754,-577.46205938,0.00022,2]
[350051504,1737592265765,-1199.79854666,0.00022,2]
[350051505,1737592265784,-547.52,0.00020995,2]
[350051506,1737592265794,-117.79684,0.00022,2]
[350051507,1737592265813,-310.06210583,0.00019178,2]
[350051508,1737592266137,-1600.0,0.000118,4]
[350051509,1737592266147,-189.93789417,0.00019178,2]
[350051510,1737592266158,-204.28245583,0.00019178,2]
[350051511,1737592266169,-500.0,0.00019178,2]
[350051512,1737592266178,-500.0,0.00019452,2]
[350051513,1737592266188,-500.0,0.00019726,2]
[350051514,1737592266198,-500.0,0.0002,2]
[350051515,1737592266208,-500.0,0.00020272,2]
[350051516,1737592266217,-500.0,0.00020273,2]
[350051517,1737592266227,-501.75918858,0.00020546,2]
[350051518,1737592266236,-500.0,0.00020546,2]
[350051519,1737592266246,-500.0,0.00020547,2]
[350051520,1737592266258,-500.0,0.0002082,2]
[350051521,1737592266267,-500.0,0.00020821,2]
[350051522,1737592266277,-500.0,0.00021094,2]
[350051523,1737592266286,-500.0,0.00021095,2]
[350051524,1737592266296,-547.52,0.00021269,2]
[350051525,1737592266306,-500.0,0.00021368,2]
[350051526,1737592266315,-500.0,0.00021369,2]
[350051527,1737592266325,-547.52,0.00021543,2]
[350051528,1737592266335,-500.0,0.00021642,2]
[350051529,1737592266344,-547.52,0.00021817,2]
[350051530,1737592266354,-508.47938671,0.00021916,2]
[350051531,1737592266362,-132574.51549629,0.00022,2]
[350051532,1737592266402,-19147.43706555,0.00022,2]
[350051533,1737592266414,-485.305,0.00022,2]
[350051534,1737592266436,-500.0,0.00021643,2]
[350051535,1737592266447,-856.94131638,0.00022,2]
[350051536,1737592266470,-165.811224,0.00019625,2]
[350051537,1737592266481,-923509.05648111,0.00022,2]
[350051538,1737592266493,-524.5647898,0.00022,2]
[350051539,1737592266505,-963571.78723853,0.00022,2]
[350051540,1737592266517,-12895.65277055,0.00022,2]
[350051541,1737592267300,-1091.75207852,0.000119,4]
[350051542,1737592267326,-452.67344582,0.000119,4]
[350051543,1737592267338,-55.57447566,0.000119,4]
[350051544,1737592267347,-500.0,0.00019178,2]
[350051545,1737592267356,-114.56188142,0.00019178,2]
[350051546,1737592267375,-385.43811858,0.00019178,2]
[350051547,1737592267387,-814.67188142,0.00019178,2]
[350051548,1737592267398,-1252.47811858,0.00019178,2]
[350051549,1737592267407,-500.0,0.00019178,2]
[350051550,1737592267416,-500.0,0.00019452,2]
[350051551,1737592267425,-500.0,0.00019452,2]
[350051552,1737592267436,-2067.15,0.00019452,2]
[350051553,1737592267448,-190.2688656,0.00019452,2]
[350051554,1737592267632,-309.7311344,0.00019452,2]
[350051555,1737592267644,-842.16,0.00019625,2]
[350051556,1737592267656,-532.11,0.00019625,2]
[350051557,1737592267666,-500.0,0.00019726,2]
[350051558,1737592267678,-500.0,0.00019726,2]
[350051559,1737592267688,-2067.15,0.00019726,2]
[350051560,1737592267698,-500.0,0.00019726,2]
[350051561,1737592267707,-165.811224,0.00019899,2]
[350051562,1737592267716,-842.16,0.00019899,2]
[350051563,1737592267726,-532.11,0.00019899,2]
[350051564,1737592267735,-1985.0,0.000199,7]
[350051565,1737592267745,-500.0,0.0002,2]
[350051566,1737592267756,-378.02765458,0.0002,2]
[350051567,1737592267765,-2067.15,0.0002,2]
[350051568,1737592267775,-500.0,0.0002,2]
[350051569,1737592267784,-165.811224,0.00020173,2]
[350051570,1737592267794,-842.16,0.00020173,2]
[350051571,1737592267803,-532.11,0.00020173,2]
[350051572,1737592267812,-388.80165442,0.00020272,2]
[350051573,1737592267821,-518.72377792,0.00020272,2]
[350051574,1737592267830,-500.0,0.00020273,2]
[350051575,1737592267839,-2067.15,0.00020273,2]
[350051576,1737592267849,-500.0,0.00020273,2]
[350051577,1737592267859,-842.16,0.00020447,2]
[350051578,1737592267870,-532.11,0.00020447,2]
[350051579,1737592267879,-500.0,0.00020547,2]
[350051580,1737592267889,-1694.65030542,0.00020547,2]
[350051581,1737592480050,211.1799988,0.00022004,120]
[350051583,1737593217118,-3775.27024855,0.00010962,2]
[350051584,1737593217140,-192.87456793,0.00012039,2]
[350051585,1737593217161,-587.99378659,0.00012139,2]
[350051608,1737593431953,-393.49,0.00010137,2]
[350051609,1737593431963,-190.64916151,0.00012139,2]
[350051610,1737593431972,-169.82,0.00012329,2]
[350051611,1737593431983,-531.60627858,0.00012484,2]
[350051612,1737593431992,-151.0,0.00012566,2]
[350051613,1737593432002,-240.8054599,0.00012705,2]
[350051614,1737593432011,-150.0,0.00012849,2]
[350051615,1737593432021,-512.30343476,0.00012869,2]
[350051616,1737593432030,-151.0,0.00013351,2]
[350051617,1737593432040,-250.0,0.00013394,2]
[350051618,1737593432050,-1500.0,0.00013441,2]
[350051619,1737593432059,-254.09,0.00013541,2]
[350051620,1737593432068,-300.0,0.00013564,2]
[350051621,1737593432078,-2383.69285018,0.00013565,2]
[350051622,1737593432089,-21516.30714982,0.00013565,2]
[350051623,1737593432098,-580.42,0.00013594,2]
[350051624,1737593432108,-832.33,0.00013657,2]
[350051625,1737593432117,-313.85,0.00013678,2]
[350051626,1737593432126,-250.0,0.00013696,2]
[350051627,1737593432135,-200.0,0.00013699,2]
[350051628,1737593432145,-6945.63,0.00013763,2]
[350051629,1737593432154,-250.0,0.00013827,2]
[350051630,1737593432167,-155.25,0.00013835,2]
[350051631,1737593432177,-155.25,0.00013839,2]
[350051632,1737593432187,-155.25,0.00013843,2]
[350051633,1737593432199,-150.0,0.00013846,2]
[350051634,1737593432208,-155.25,0.00013846,2]
[350051635,1737593432218,-155.25,0.0001385,2]
[350051636,1737593432228,-155.25,0.00013854,2]
[350051637,1737593432242,-155.25,0.00013858,2]
[350051638,1737593432253,-155.25,0.00013862,2]
[350051639,1737593432262,-155.25,0.00013866,2]
[350051640,1737593432272,-155.25,0.00013869,2]
[350051641,1737593432281,-155.25,0.00013873,2]
[350051642,1737593432290,-155.25,0.00013877,2]
[350051643,1737593432300,-155.25,0.00013881,2]
[350051644,1737593432311,-155.25,0.00013885,2]
[350051645,1737593432320,-155.25,0.00013889,2]
[350051646,1737593432329,-155.25,0.00013892,2]
[350051647,1737593432339,-155.25,0.00013896,2]
[350051648,1737593432348,-155.25,0.000139,2]
[350051649,1737593432357,-155.25,0.00013904,2]
[350051650,1737593432367,-151.0,0.00014136,2]
[350051651,1737593432377,-319.56,0.00014476,2]
[350051652,1737593432387,-235.59,0.00014758,2]
[350051653,1737593432397,-5032.57,0.00014764,2]
[350051654,1737593432406,-332.62,0.00014768,2]
[350051655,1737593432416,-1040.81,0.00014793,2]
[350051656,1737593432425,-166.66,0.00014812,2]
[350051657,1737593432435,-500.0,0.00014821,2]
[350051658,1737593432445,-1000.0,0.00014843,2]
[350051659,1737593432454,-960.84,0.0001485,2]
[350051660,1737593432464,-250.0,0.00014855,2]
[350051661,1737593432474,-420.0,0.00014867,2]
[350051662,1737593432484,-151.0,0.00014922,2]
[350051663,1737593432494,-1496.88,0.00014962,2]
[350051664,1737593432503,-550.0,0.00015,2]
[350051665,1737593432512,-166.66,0.00015301,2]
[350051666,1737593432522,-1058.0,0.000155,2]
[350051667,1737593432531,-960.84,0.00015592,2]
[350051668,1737593432540,-151.0,0.00015707,2]
[350051669,1737593432550,-166.66,0.0001579,2]
[350051670,1737593432559,-226.14,0.00016104,2]
[350051671,1737593432568,-166.66,0.00016279,2]
[350051672,1737593432577,-96.47753795,0.00016295,2]
[350051673,1737593432589,-490.52246205,0.00016295,2]
[350051674,1737593432598,-960.84,0.00016335,2]
[350051675,1737593432607,-151.0,0.00016493,2]
[350051676,1737593432615,-1040.81,0.00016642,2]
[350051677,1737593432624,-159.72,0.00016658,30]
[350051678,1737593432633,-1000.0,0.00016699,2]
[350051679,1737593432642,-215.27725224,0.000167,2]
[350051680,1737593432651,-215.27725224,0.000167,2]
[350051681,1737593432659,-166.66,0.00016768,2]
[350051682,1737593432670,-393.49,0.00016813,2]
[350051683,1737593432681,-600.0,0.00017,2]
[350051684,1737593432691,-960.84,0.00017077,2]
[350051685,1737593432700,-1496.88,0.00017226,2]
[350051686,1737593432710,-166.66,0.00017257,2]
[350051687,1737593432721,-151.0,0.00017278,2]
[350051688,1737593432731,-226.14,0.00017474,2]
[350051689,1737593432741,-944.70963582,0.000175,2]
[350051690,1737593432750,-129.76250729,0.000175,2]
[350051691,1737593432860,-814.94712842,0.000175,2]
[350051692,1737593432871,-944.70963571,0.000175,2]
[350051693,1737593432881,-944.70963571,0.000175,2]
[350051694,1737593432890,-944.70963571,0.000175,2]
[350051695,1737593432899,-944.70963571,0.000175,2]
[350051696,1737593432908,-944.70963571,0.000175,2]
[350051697,1737593432918,-944.70963571,0.000175,2]
[350051698,1737593432927,-944.70963571,0.00017555,2]
[350051699,1737593432939,-944.70963571,0.00017762,2]
[350051700,1737593432949,-960.84,0.0001782,2]
[350051701,1737593432959,-823.0,0.0001786,2]
[350051702,1737593432967,-717.01003145,0.00017969,2]
[350051703,1737593437579,-227.69960426,0.00017969,2]
[350051704,1737593437589,-151.0,0.00018063,2]
[350051705,1737593437601,-871.38,0.00018082,2]
[350051706,1737593437610,-944.70963571,0.00018176,2]
[350051707,1737593437620,-7653.11,0.00018356,2]
[350051708,1737593437630,-944.70963571,0.00018383,2]
[350051709,1737593437639,-9392.85096896,0.00018422,2]
[350051710,1737593437652,-62726.79392784,0.00018422,2]
[350051711,1737593437672,-4773.3551032,0.00018422,2]
[350051712,1737593437684,-1040.81,0.00018491,2]
[350051713,1737593437695,-500.0,0.00018548,2]
[350051714,1737593437705,-1000.0,0.00018554,2]
[350051715,1737593437714,-168.814,0.0001856,2]
[350051716,1737593437723,-1891.362,0.0001856,2]
[350051717,1737593437732,-283.65842935,0.0001859,2]
[350051718,1737593437750,-661.05120636,0.0001859,2]
[350051719,1737593437759,-871.38,0.00018751,2]
[350051720,1737593437768,-944.70963571,0.00018797,2]
[350051721,1737593437778,-151.0,0.00018849,2]
[350051722,1737593437787,-3891.39385099,0.00018978,2]
[350051723,1737593437801,-307.91924901,0.00018978,2]
[350051724,1737593437811,-316.7422,0.00018978,2]
[350051725,1737593437820,-2500.0,0.00018978,2]
[350051726,1737593437829,-650.0,0.00019,2]
[350051727,1737593437839,-944.70963571,0.00019003,2]
[350051728,1737593437850,-1525.94,0.00019068,2]
[350051729,1737593437860,-190.05417044,0.00019078,2]
[350051730,1737593437870,-25699.98508124,0.00019078,2]
[350051731,1737593437880,-11211.05580411,0.00019078,2]
[350051732,1737593437900,-44343.94419589,0.00019078,2]
[350051733,1737593437910,-574.84976841,0.00019079,2]
[350051734,1737593437920,-500.0,0.00019173,2]
[350051735,1737593437930,-500.0,0.00019173,2]
[350051736,1737593437944,-153.03487534,0.00019173,2]
[350051737,1737593437955,-151.03159907,0.00019173,2]
[350051738,1737593437964,-500.0,0.00019173,2]
[350051739,1737593437975,-152.28656556,0.00019173,2]
[350051740,1737593437986,-153.46097358,0.00019173,2]
[350051741,1737593437995,-169.9336616,0.00019173,2]
[350051742,1737593438004,-161.01702731,0.00019173,2]
[350051743,1737593438014,-472.37173053,0.00019173,2]
[350051744,1737593438023,-165.811226,0.00019178,2]
[350051745,1737593438034,-284.7673,0.00019178,2]
[350051746,1737593438043,-500.0,0.00019178,2]
[350051747,1737593438052,-500.0,0.00019178,2]
[350051748,1737593438061,-500.0,0.00019178,2]
[350051749,1737593438070,-500.0,0.00019178,2]
[350051750,1737593438079,-500.0,0.00019178,2]
[350051751,1737593438089,-500.0,0.00019178,2]
[350051752,1737593438098,-500.0,0.00019178,2]
[350051753,1737593438107,-500.0,0.00019178,2]
[350051754,1737593438117,-500.0,0.00019178,2]
[350051755,1737593438126,-500.0,0.00019178,2]
[350051756,1737593438135,-500.0,0.00019178,2]
[350051758,1737593438145,-500.0,0.00019178,2]
[350051760,1737593438154,-500.0,0.00019178,2]
[350051762,1737593438163,-500.0,0.00019178,2]
[350051763,1737593438172,-500.0,0.00019178,2]
[350051764,1737593438182,-631.89,0.00019178,2]
[350051765,1737593438191,-500.0,0.00019178,2]
[350051766,1737593438201,-603.62140058,0.00019178,2]
[350051767,1737593438210,-500.0,0.00019178,2]
[350051768,1737593438219,-500.0,0.00019178,2]
[350051769,1737593438229,-500.0,0.00019178,2]
[350051770,1737593438238,-500.0,0.00019178,2]
[350051771,1737593438248,-500.0,0.00019178,2]
[350051772,1737593438420,-500.0,0.00019178,2]
[350051773,1737593438432,-500.0,0.00019178,2]
[350051774,1737593438442,-500.0,0.00019178,2]
[350051775,1737593438452,-500.0,0.00019178,2]
[350051776,1737593438461,-536.65099722,0.00019178,2]
[350051777,1737593438470,-500.0,0.00019178,2]
[350051778,1737593438479,-502.53775112,0.00019178,2]
[350051779,1737593438489,-500.0,0.00019178,2]
[350051780,1737593438499,-500.0,0.00019178,2]
[350051781,1737593438508,-502.85668816,0.00019178,2]
[350051782,1737593438517,-500.0,0.00019178,2]
[350051783,1737593438527,-500.0,0.00019178,2]
[350051784,1737593438537,-503.59273306,0.00019178,2]
[350051785,1737593438547,-500.0,0.00019178,2]
[350051786,1737593438556,-500.0,0.00019178,2]